fUSD/lending_fUSD_20251217
["ID","MTS","AMOUNT","RATE_DAILY","PERIOD"]
[398863442,1765933848441,-25000.0,0.00018891,3]
[398863443,1765933848450,-150.0,0.00018891,2]
[398863444,1765933848460,-150.0,0.00018891,2]
[398863445,1765933848471,-150.0,0.00018896,2]
[398863446,1765933848480,-3924.49467574,0.000189,2]
[398863447,1765933848491,-10000.0,0.000189,2]
[398863448,1765933848500,-25000.0,0.000189,3]
[398863449,1765933848509,-158.08541667,0.000189,2]
[398863450,1765933848519,-500.0,0.000189,2]
[398863451,1765933848529,-500.0,0.000189,2]
[398863452,1765933848539,-500.0,0.000189,2]
[398863453,1765933848551,-500.0,0.000189,2]
[398863454,1765933848561,-500.0,0.000189,2]
[398863455,1765933848571,-500.0,0.000189,2]
[398863456,1765933848581,-500.0,0.000189,2]
[398863457,1765933848592,-500.0,0.000189,2]
[398863458,1765933848602,-500.0,0.000189,2]
[398863459,1765933848612,-500.0,0.000189,2]
[398863460,1765933848622,-500.0,0.000189,2]
[398863461,1765933848633,-500.0,0.000189,2]
[398863462,1765933848644,-500.0,0.000189,2]
[398863463,1765933848654,-500.0,0.000189,2]
[398863464,1765933848664,-500.0,0.000189,2]
[398863465,1765933848673,-500.0,0.000189,2]
[398863466,1765933848974,-500.0,0.000189,2]
[398863467,1765933849012,-500.0,0.000189,2]
[398863468,1765933849022,-500.0,0.000189,2]
[398863469,1765933849031,-481.35955285,0.000189,3]
[398863470,1765933849040,-200.43150043,0.000189,2]
[398863471,1765933849049,-25000.0,0.000189,3]
[398863472,1765933849058,-858.00402554,0.000189,2]
[398863473,1765933849067,-151.0,0.000189,2]
[398863474,1765933849077,-151.0,0.000189,2]
[398863475,1765933849086,-6222.09176732,0.000189,2]
[398863476,1765933849099,-1255.967493,0.000189,2]
[398863477,1765933849108,-1255.967493,0.000189,2]
[398863478,1765933849118,-1255.967493,0.000189,2]
[398863479,1765933849128,-1255.967493,0.000189,2]
[398863480,1765933849138,-154.53344708,0.000189,2]
[398863481,1765933849148,-154.53344708,0.000189,2]
[398863482,1765933849159,-154.53344708,0.000189,2]
[398863483,1765933849170,-154.53344708,0.000189,2]
[398863484,1765933849181,-708.11884574,0.000189,3]
[398863485,1765933849191,-154.53344708,0.000189,2]
[398863486,1765933849202,-154.53344708,0.000189,2]
[398863487,1765933849212,-154.53344708,0.000189,2]
[398863488,1765933849222,-154.53344708,0.000189,2]
[398863489,1765933849231,-154.53344708,0.000189,2]
[398863490,1765933849240,-154.53344708,0.000189,2]
[398863491,1765933849250,-154.53344708,0.000189,2]
[398863492,1765933849261,-154.53344708,0.000189,2]
[398863493,1765933849271,-154.53344708,0.000189,2]
[398863494,1765933849280,-154.53344708,0.000189,2]
[398863495,1765933849290,-154.53344708,0.000189,2]
[398863496,1765933849300,-154.53344708,0.000189,2]
[398863497,1765933849310,-154.53344708,0.000189,2]
[398863498,1765933849320,-154.53,0.000189,2]
[398863499,1765933849330,-324.52023886,0.000189,2]
[398863500,1765933849340,-324.52023886,0.000189,2]
[398863501,1765933849350,-324.52023886,0.000189,2]
[398863502,1765933849359,-324.52023886,0.000189,2]
[398863503,1765933849369,-324.52023886,0.000189,2]
[398863504,1765933849379,-324.52023886,0.000189,2]
[398863505,1765933849390,-324.52023886,0.000189,2]
[398863506,1765933849400,-324.52023886,0.000189,2]
[398863507,1765933849411,-324.52023886,0.000189,2]
[398863508,1765933849423,-151.0,0.000189,2]
[398863509,1765933849434,-324.52023886,0.000189,2]
[398863510,1765933849444,-324.52023886,0.000189,2]
[398863511,1765933849454,-324.52023886,0.000189,2]
[398863512,1765933849464,-324.52023886,0.000189,2]
[398863513,1765933849474,-324.52023886,0.000189,2]
[398863514,1765933849484,-324.52023886,0.000189,2]
[398863515,1765933849494,-324.52023886,0.000189,2]
[398863516,1765933849504,-324.52023886,0.000189,2]
[398863517,1765933849514,-324.52023886,0.000189,2]
[398863518,1765933849525,-324.52023886,0.000189,2]
[398863519,1765933849535,-324.52,0.000189,2]
[398863520,1765933849546,-186.20716257,0.000189,2]
[398863521,1765933849555,-186.20716257,0.000189,2]
[398863522,1765933849565,-186.2,0.000189,2]
[398863523,1765933849575,-162.93126725,0.000189,2]
[398863524,1765933849586,-162.93126725,0.000189,2]
[398863525,1765933849596,-162.93126725,0.000189,2]
[398863526,1765933849605,-162.93126725,0.000189,2]
[398863527,1765933849615,-162.93126725,0.000189,2]
[398863528,1765933849625,-162.93126725,0.000189,2]
[398863529,1765933849634,-162.93126725,0.000189,2]
[398863530,1765933849644,-162.93,0.000189,2]
[398863531,1765933849653,-158.61164639,0.000189,2]
[398863532,1765933849662,-158.61164639,0.000189,2]
[398863533,1765933849672,-158.61164639,0.000189,2]
[398863534,1765933849682,-158.61164639,0.000189,2]
[398863535,1765933849691,-158.61164639,0.000189,2]
[398863536,1765933849701,-158.61164639,0.000189,2]
[398863537,1765933849711,-158.61,0.000189,2]
[398863538,1765933849721,-152.39158183,0.000189,2]
[398863539,1765933849732,-152.39158183,0.000189,2]
[398863540,1765933849742,-152.39158183,0.000189,2]
[398863541,1765933849752,-152.39158183,0.000189,2]
[398863542,1765933849762,-152.39158183,0.000189,2]
[398863543,1765933849772,-152.39158183,0.000189,2]
[398863544,1765933849781,-152.39158183,0.000189,2]
[398863545,1765933849791,-152.39158183,0.000189,2]
[398863546,1765933849801,-658.43350278,0.000189,2]
[398863547,1765933849811,-152.39158183,0.000189,2]
[398863548,1765933849821,-152.39158183,0.000189,2]
[398863549,1765933849831,-152.39158183,0.000189,2]
[398863550,1765933849845,-152.39158183,0.000189,2]
[398863551,1765933849855,-152.39158183,0.000189,2]
[398863552,1765933849865,-152.39158183,0.000189,2]
[398863553,1765933849875,-152.39158183,0.000189,2]
[398863554,1765933849884,-152.39158183,0.000189,2]
[398863555,1765933849894,-152.39,0.000189,2]
[398863556,1765933849910,-3083.02913351,0.000189,2]
[398863557,1765933849920,-296.11084019,0.000189,2]
[398863558,1765933849929,-12881.57372008,0.000189,2]
[398863559,1765933849939,-500.0,0.00018904,2]
[398863560,1765933849950,-500.0,0.00018904,2]
[398863561,1765933849960,-849.0,0.00018904,2]
[398863562,1765933849969,-500.0,0.00018904,2]
[398863563,1765933849978,-500.0,0.00018904,2]
[398863564,1765933849989,-150.0,0.00018904,2]
[398863565,1765933849998,-500.0,0.00018904,2]
[398863566,1765933850008,-500.0,0.00018904,2]
[398863567,1765933850017,-184.82839531,0.00018904,2]
[398863568,1765933850027,-150.0,0.00018904,2]
[398863569,1765933850036,-500.0,0.00018904,2]
[398863570,1765933850045,-200.91809234,0.00018904,2]
[398863571,1765933850055,-500.0,0.00018904,2]
[398863572,1765933850064,-500.0,0.00018904,2]
[398863573,1765933850074,-500.0,0.00018904,2]
[398863574,1765933850083,-952.37,0.00018904,9]
[398863575,1765933850093,-150.0,0.00018923,2]
[398863576,1765933850104,-150.0,0.0001893,2]
[398863577,1765933850113,-348.59889748,0.00018932,2]
[398863578,1765933850123,-150.0,0.00018936,2]
[398863579,1765933850133,-150.0,0.00018939,2]
[398863580,1765933850143,-13648.0,0.00018959,2]
[398863581,1765933850152,-1000.0,0.0001897,2]
[398863582,1765933850162,-1366.07845684,0.0001897,2]
[398863583,1765933850171,-291.06213929,0.00018986,2]
[398863584,1765933850181,-155.14051023,0.00018986,2]
[398863585,1765933850190,-177.78518512,0.00018986,2]
[398863586,1765933850200,-246.62946307,0.00018986,2]
[398863587,1765933850210,-152.46703937,0.00018986,2]
[398863588,1765933850219,-166.91715989,0.00018986,2]
[398863589,1765933850229,-190.02970871,0.00018986,2]
[398863590,1765933850239,-235.5904803,0.00018986,2]
[398863591,1765933850248,-152.59251288,0.00018986,2]
[398863592,1765933850257,-176.45823881,0.00018986,2]
[398863593,1765933850267,-152.52656457,0.00018986,2]
[398863594,1765933850276,-152.93167974,0.00018986,2]
[398863595,1765933850286,-234.22488303,0.00018986,2]
[398863596,1765933850296,-152.13508928,0.00018986,2]
[398863597,1765933850306,-261.0,0.00018986,2]
[398863598,1765933850315,-1099.38789114,0.0001899,2]
[398863599,1765933850325,-1099.38789114,0.0001899,2]
[398863600,1765933850335,-1036.83747208,0.00018999,5]
[398863601,1765933850344,-568.58435032,0.00018999,2]
[398863602,1765933850354,-500.0,0.00018999,2]
[398863603,1765933850363,-500.0,0.00018999,2]
[398863604,1765933850372,-413.25776068,0.00018999,2]
[398863605,1765933850382,-300.0,0.00018999,2]
[398863606,1765933850391,-300.0,0.00018999,2]
[398863607,1765933850401,-300.0,0.00018999,2]
[398863608,1765933850411,-300.0,0.00018999,2]
[398863609,1765933850420,-300.0,0.00018999,2]
[398863610,1765933850429,-550.4147973,0.00019,2]
[398863611,1765933850439,-673712.62320917,0.00019,2]
[398863612,1765933854381,-1692.96193425,0.00019,2]
[398863613,1765934709293,935.0,0.00023,120]
[398863614,1765934780759,40207.73692038,0.000209,30]
[398863617,1765934911800,2725.15807962,0.0001,2]
[398863618,1765934922434,2583.05748545,0.0001,2]
[398863619,1765934935801,195.0,0.00022,30]
[398863620,1765934936478,194.0,0.00022,30]
[398863686,1765935033082,-254.0,0.0001269,2]
[398863687,1765935033092,-19.00000014,0.00013698,2]
[398863688,1765935033103,-480.99999986,0.00013698,2]
[398863689,1765935033113,-500.0,0.00013698,2]
[398863690,1765935033122,-834.57,0.00013699,2]
[398863691,1765935033131,-199.65228897,0.00013858,2]
[398863692,1765935033140,-188.22,0.00013902,2]
[398863693,1765935033149,-300.0,0.00013957,2]
[398863694,1765935033159,-300.0,0.00013957,2]
[398863695,1765935033168,-1200.0,0.00013957,2]
[398863696,1765935033177,-1200.0,0.00013958,2]
[398863697,1765935033186,-300.0,0.00013959,2]
[398863698,1765935033195,-300.0,0.00013959,2]
[398863699,1765935033204,-250.0,0.00013959,2]
[398863700,1765935033213,-250.0,0.00013959,2]
[398863701,1765935033222,-253.42530796,0.00013959,2]
[398863702,1765935033231,-150.0,0.00014263,2]
[398863703,1765935033240,-200.0,0.00014264,2]
[398863704,1765935033250,-200.0,0.00014264,2]
[398863705,1765935033259,-500.0,0.00014264,2]
[398863706,1765935033268,-500.0,0.00014264,2]
[398863707,1765935033277,-500.0,0.00014264,2]
[398863708,1765935033289,-500.0,0.00014264,2]
[398863709,1765935033298,-500.0,0.00014264,2]
[398863710,1765935033307,-200.0,0.00014264,2]
[398863711,1765935033317,-500.0,0.00014272,2]
[398863712,1765935033326,-500.0,0.00014272,2]
[398863713,1765935033335,-500.0,0.00014272,2]
[398863714,1765935033344,-150.99,0.00014273,2]
[398863715,1765935033353,-5426.56,0.00014273,2]
[398863716,1765935033362,-500.0,0.00014273,2]
[398863717,1765935033371,-200.0,0.00014524,2]
[398863718,1765935033380,-903.5,0.00014597,2]
[398863719,1765935033389,-1343.14,0.00014634,2]
[398863720,1765935033398,-1000.0,0.00014821,2]
[398863721,1765935033408,-169.82200954,0.000149,2]
[398863722,1765935033417,-500.0,0.00015073,2]
[398863723,1765935033427,-500.0,0.00015073,2]
[398863724,1765935033436,-161.65,0.00015116,2]
[398863725,1765935033446,-150.0,0.00015155,2]
[398863726,1765935033456,-33374.11,0.00015205,2]
[398863727,1765935033465,-152.97,0.00015259,2]
[398863728,1765935033474,-150.72,0.00015259,2]
[398863729,1765935033484,-151.67,0.00015259,2]
[398863730,1765935033493,-150.3,0.00015259,2]
[398863731,1765935033502,-152.3,0.00015259,2]
[398863732,1765935033512,-151.51,0.00015259,2]
[398863733,1765935033521,-151.9,0.00015259,2]
[398863734,1765935033531,-420.0,0.00015291,2]
[398863735,1765935033540,-416.0,0.00015291,2]
[398863736,1765935033550,-1680.0,0.00015353,2]
[398863737,1765935033560,-1500.0,0.00015368,2]
[398863738,1765935033569,-255.0,0.0001539,2]
[398863739,1765935033578,-500.0,0.00015449,2]
[398863740,1765935033587,-500.0,0.00015449,2]
[398863741,1765935033596,-1000.0,0.00015621,2]
[398863742,1765935033605,-537.90608687,0.00015621,2]
[398863743,1765935033614,-2000.0,0.00015916,2]
[398863744,1765935033625,-161.65,0.00016061,2]
[398863745,1765935033636,-1128.93877006,0.00016168,2]
[398863746,1765935033646,-5000.00048234,0.000162,5]
[398863747,1765935033655,-208.8831,0.000163,2]
[398863748,1765935033664,-594.61703171,0.00016331,2]
[398863749,1765935033675,-481.35955285,0.00016336,2]
[398863750,1765935033684,-151.0,0.00016397,2]
[398863751,1765935033693,-167.39636206,0.00016399,2]
[398863752,1765935033703,-500.0,0.00016399,2]
[398863753,1765935033712,-418.42856509,0.00016399,2]
[398863754,1765935033721,-155.66352002,0.00016399,2]
[398863755,1765935033730,-53410.79635308,0.000164,2]
[398863756,1765935033742,-6748.52690003,0.000164,2]
[398863757,1765935033753,-40673.7973627,0.000164,2]
[398863758,1765935033764,-1020.54048194,0.000164,2]
[398863759,1765935033774,-1012.46642951,0.000164,2]
[398863760,1765935033785,-588.63997686,0.000164,2]
[398863761,1765935033815,-47451.81093025,0.000164,2]
[398863762,1765935033827,-1008.33,0.000164,2]
[398863763,1765935033839,-4768.95087844,0.000164,2]
[398863764,1765935033850,-5332.97867924,0.000164,2]
[398863776,1765935038916,-451.14186505,0.000164,2]
[398863777,1765935038948,-3531.99658436,0.000164,2]
[398863778,1765935038981,-7686.52835969,0.000164,2]
[398863779,1765935038994,-62978.93016424,0.000164,2]
[398863780,1765935039006,-4312.66566898,0.000164,2]
[398863781,1765935039018,-143131.95999647,0.000164,2]
[398863782,1765935039052,-161617.76826975,0.000164,2]
[398863783,1765935039061,-594.61703171,0.00016412,2]
[398863784,1765935039071,-279.31,0.00016431,2]
[398863785,1765935039082,-579.50788811,0.00016438,2]
[398863786,1765935039092,-594.61703171,0.00016494,2]
[398863787,1765935039102,-300.0,0.00016527,2]
[398863788,1765935039111,-553.64373807,0.00016527,2]
[398863789,1765935039120,-200.0,0.00016527,2]
[398863790,1765935039131,-207.4,0.00016527,2]
[398863791,1765935039141,-215.0738,0.00016527,2]
[398863792,1765935039150,-164.72434962,0.00016527,2]
[398863793,1765935039160,-201.93286099,0.00016527,2]
[398863794,1765935039169,-1234.0,0.00016527,2]
[398863795,1765935039178,-200.0,0.00016529,2]
[398863796,1765935039187,-5375.71,0.00016552,2]
[398863797,1765935039207,-594.61703171,0.00016575,2]
[398863798,1765935039218,-358.45051789,0.000166,2]
[398863799,1765935039227,-433.0,0.00016602,2]
[398863800,1765935039237,-594.61703171,0.00016656,2]
[398863801,1765935039246,-163.94,0.00016712,2]
[398863802,1765935039255,-594.61703171,0.00016737,2]
[398863803,1765935039264,-587.0,0.00016753,2]
[398863805,1765935039275,-594.61703171,0.00016819,2]
[398863807,1765935039285,-214.01883147,0.00016868,2]
[398863809,1765935039295,-2351.0,0.00016888,2]
[398863811,1765935039306,-46555.31290256,0.000169,2]
[398863813,1765935039316,-219.47783426,0.000169,2]
[398863815,1765935039327,-447.52547882,0.000169,2]
[398863816,1765935039338,-154.53344708,0.000169,2]
[398863817,1765935039347,-154.53344708,0.000169,2]
[398863818,1765935039356,-154.53344708,0.000169,2]
[398863819,1765935039365,-154.53344708,0.000169,2]
[398863820,1765935039375,-154.53344708,0.000169,2]
[398863821,1765935039384,-154.53344708,0.000169,2]
[398863822,1765935039393,-154.53344708,0.000169,2]
[398863823,1765935039402,-154.53344708,0.000169,2]
[398863824,1765935039412,-154.53344708,0.000169,2]
[398863825,1765935039421,-154.53344708,0.000169,2]
[398863826,1765935039430,-154.53344708,0.000169,2]
[398863827,1765935039439,-154.53344708,0.000169,2]
[398863828,1765935039448,-154.53344708,0.000169,2]
[398863829,1765935039457,-154.53344708,0.000169,2]
[398863830,1765935039467,-154.53344708,0.000169,2]
[398863831,1765935039476,-154.53344708,0.000169,2]
[398863832,1765935039485,-154.53344708,0.000169,2]
[398863833,1765935039494,-154.53,0.000169,2]
[398863834,1765935039503,-324.52023886,0.000169,2]
[398863835,1765935039513,-324.52023886,0.000169,2]
[398863836,1765935039526,-324.52023886,0.000169,2]
[398863837,1765935039535,-324.52023886,0.000169,2]
[398863838,1765935039546,-324.52023886,0.000169,2]
[398863839,1765935039555,-324.52023886,0.000169,2]
[398863840,1765935039564,-324.52023886,0.000169,2]
[398863841,1765935039574,-324.52023886,0.000169,2]
[398863842,1765935039583,-324.52023886,0.000169,2]
[398863843,1765935039593,-324.52023886,0.000169,2]
[398863844,1765935039602,-324.52023886,0.000169,2]
[398863845,1765935039611,-324.52023886,0.000169,2]
[398863846,1765935039621,-324.52023886,0.000169,2]
[398863847,1765935039630,-324.52023886,0.000169,2]
[398863848,1765935039639,-324.52023886,0.000169,2]
[398863849,1765935039653,-324.52023886,0.000169,2]
[398863850,1765935039662,-324.52023886,0.000169,2]
[398863851,1765935039671,-324.52023886,0.000169,2]
[398863852,1765935039680,-324.52023886,0.000169,2]
[398863853,1765935039689,-324.52,0.000169,2]
[398863854,1765935039699,-186.20716257,0.000169,2]
[398863855,1765935039708,-186.20716257,0.000169,2]
[398863856,1765935039717,-186.2,0.000169,2]
[398863857,1765935039726,-162.93126725,0.000169,2]
[398863858,1765935039735,-162.93126725,0.000169,2]
[398863859,1765935039744,-162.93126725,0.000169,2]
[398863860,1765935039754,-162.93126725,0.000169,2]
[398863861,1765935039763,-162.93126725,0.000169,2]
[398863862,1765935039772,-162.93126725,0.000169,2]
[398863863,1765935039781,-162.93126725,0.000169,2]
[398863864,1765935039790,-162.93,0.000169,2]
[398863865,1765935039800,-158.61164639,0.000169,2]
[398863866,1765935039809,-158.61164639,0.000169,2]
[398863867,1765935039819,-158.61164639,0.000169,2]
[398863868,1765935039829,-158.61164639,0.000169,2]
[398863869,1765935039840,-158.61164639,0.000169,2]
[398863870,1765935039849,-158.61164639,0.000169,2]
[398863871,1765935039859,-158.61,0.000169,2]
[398863872,1765935039868,-152.39158183,0.000169,2]
[398863873,1765935039877,-152.39158183,0.000169,2]
[398863874,1765935039886,-152.39158183,0.000169,2]
[398863875,1765935039895,-152.39158183,0.000169,2]
[398863876,1765935039904,-152.39158183,0.000169,2]
[398863877,1765935039914,-152.39158183,0.000169,2]
[398863878,1765935039923,-152.39158183,0.000169,2]
[398863879,1765935039932,-152.39158183,0.000169,2]
[398863880,1765935039941,-152.39158183,0.000169,2]
[398863881,1765935039950,-152.39158183,0.000169,2]
[398863882,1765935039959,-152.39158183,0.000169,2]
[398863883,1765935039968,-152.39158183,0.000169,2]
[398863884,1765935039977,-152.39158183,0.000169,2]
[398863885,1765935039987,-152.39158183,0.000169,2]
[398863886,1765935039996,-152.39158183,0.000169,2]
[398863887,1765935040006,-152.39158183,0.000169,2]
[398863888,1765935040015,-152.39,0.000169,2]
[398863889,1765935040024,-12881.57372008,0.000169,2]
[398863890,1765935040033,-236.03961526,0.000169,2]
[398863891,1765935040042,-594.61703171,0.000169,2]
[398863892,1765935040052,-1028.24271321,0.000169,2]
[398863893,1765935040061,-500.0,0.000169,2]
[398863894,1765935040070,-500.0,0.000169,2]
[398863895,1765935040079,-500.0,0.000169,2]
[398863896,1765935040088,-500.0,0.000169,2]
[398863897,1765935040098,-500.0,0.000169,2]
[398863898,1765935040107,-500.0,0.000169,2]
[398863899,1765935040116,-500.0,0.000169,2]
[398863900,1765935040125,-500.0,0.000169,2]
[398863901,1765935040134,-500.0,0.000169,2]
[398863902,1765935040143,-500.0,0.000169,2]
[398863903,1765935040151,-500.0,0.000169,2]
[398863904,1765935040161,-500.0,0.000169,2]
[398863905,1765935040170,-500.0,0.000169,2]
[398863906,1765935040179,-500.0,0.000169,2]
[398863907,1765935040188,-500.0,0.000169,2]
[398863908,1765935040197,-500.0,0.000169,2]
[398863909,1765935040206,-500.0,0.000169,2]
[398863910,1765935040215,-500.0,0.000169,2]
[398863911,1765935040224,-500.0,0.000169,2]
[398863912,1765935040233,-200.43150043,0.000169,2]
[398863913,1765935040242,-219.47783426,0.00016903,2]
[398863914,1765935040251,-236.03961524,0.00016903,2]
[398863915,1765935040260,-227.1980555,0.00016905,2]
[398863916,1765935040270,-199.65228897,0.00016905,2]
[398863917,1765935040279,-219.47783426,0.00016905,2]
[398863918,1765935040288,-236.03961524,0.00016905,2]
[398863919,1765935040298,-543.76,0.00016906,2]
[398863920,1765935040307,-261.0,0.00016959,2]
[398863921,1765935040315,-500.0,0.00016986,2]
[398863922,1765935040324,-1100.50121119,0.0001699,2]
[398863923,1765935040333,-1100.50121119,0.0001699,2]
[398863924,1765935040342,-1100.50121119,0.0001699,2]
[398863925,1765935040351,-151.0,0.00016997,2]
[398863926,1765935040360,-2012.8885011,0.00016999,2]
[398863927,1765935040369,-300.0,0.00016999,2]
[398863928,1765935040379,-607.83,0.00016999,2]
[398863929,1765935040390,-607.83,0.00016999,2]
[398863930,1765935040399,-607.83,0.00016999,2]
[398863931,1765935040410,-607.83,0.00016999,2]
[398863932,1765935040419,-607.83,0.00016999,2]
[398863933,1765935040430,-607.83,0.00016999,2]
[398863934,1765935040439,-607.83,0.00016999,2]
[398863935,1765935040447,-607.83,0.00016999,2]
[398863936,1765935040457,-607.83,0.00016999,2]
[398863937,1765935040466,-607.83,0.00016999,2]
[398863938,1765935040476,-607.83,0.00016999,2]
[398863939,1765935040488,-607.83,0.00016999,2]
[398863940,1765935040499,-607.83,0.00016999,2]
[398863941,1765935040509,-607.83,0.00016999,2]
[398863942,1765935040519,-607.83,0.00016999,2]
[398863943,1765935040529,-607.83,0.00016999,2]
[398863944,1765935040539,-607.83,0.00016999,2]
[398863945,1765935040549,-607.83,0.00016999,2]
[398863946,1765935040559,-607.83,0.00016999,2]
[398863947,1765935040569,-607.83,0.00016999,2]
[398863948,1765935040579,-607.83,0.00016999,2]
[398863949,1765935040589,-607.83,0.00016999,2]
[398863950,1765935040599,-607.83,0.00016999,2]
[398863951,1765935040608,-607.8788134,0.00016999,2]
[398863952,1765935040617,-1594673.4623512,0.00017,2]
[398863953,1765935041540,-293.28596864,0.00017,2]
[398863954,1765935041552,-842.19516951,0.00017,2]
[398863955,1765935041604,-5388.23074535,0.00017,2]
[398863956,1765935042854,-519.06116535,0.00016903,2]
[398863957,1765935042865,-509.18154785,0.00016903,2]
[398863958,1765935042874,-2465.06069346,0.00017,2]
[398863959,1765935042923,-271.37002482,0.00017,2]
[398863960,1765935042934,-1455.83665154,0.00017,2]
[398863961,1765935043069,-980.87251112,0.00017,2]
[398863962,1765935043081,-258.75467399,0.00017,2]
[398863963,1765935043092,-325.26319965,0.00017,2]
[398863964,1765935043107,-46116.56457275,0.00017,2]
[398863965,1765935043119,-6316.52133088,0.00017,2]
[398863966,1765935043411,-14581683.70543632,0.00017,2]
[398863967,1765935043420,-777.62960789,0.00017,2]
[398863968,1765935043738,-262719.43459149,0.00017,2]
[398863969,1765935043859,-3133531.08055248,0.00017,2]
[398863970,1765935043868,-161.65,0.00017006,2]
[398863971,1765935043877,-574.12855637,0.00017075,2]
[398863972,1765935043886,-155.93788777,0.00017075,2]
[398863973,1765935043895,-1234.0,0.00017075,2]
[398863974,1765935043905,-150.0,0.00017088,2]
[398863975,1765935043914,-150.0,0.00017088,2]
[398863976,1765935043927,-150.0,0.00017088,2]
[398863977,1765935043936,-150.0,0.00017088,2]
[398863978,1765935043945,-150.0,0.00017088,2]
[398863979,1765935043955,-150.0,0.00017088,2]
[398863980,1765935043964,-150.0,0.00017088,2]
[398863981,1765935043973,-152.52656457,0.00017088,2]
[398863982,1765935043983,-150.0,0.00017088,2]
[398863983,1765935043992,-152.59251287,0.00017088,2]
[398863984,1765935044001,-190.02970872,0.00017088,2]
[398863985,1765935044011,-150.0,0.00017088,2]
[398863986,1765935044020,-150.0,0.00017088,2]
[398863987,1765935044029,-150.0,0.00017088,2]
[398863988,1765935044038,-227.19805544,0.00017105,2]
[398863989,1765935044047,-1863.68,0.00017119,2]
[398863990,1765935044056,-500.0,0.00017119,2]
[398863991,1765935044065,-543.76,0.0001718,2]
[398863992,1765935044075,-150.0,0.00017234,2]
[398863993,1765935044085,-150.0,0.00017234,2]
[398863994,1765935044094,-150.0,0.00017246,2]
[398863995,1765935044103,-452.37,0.0001726,3]
[398863996,1765935044113,-150.0,0.00017299,2]
[398863997,1765935044122,-227.19805544,0.00017304,2]
[398863998,1765935044135,-150.0,0.0001738,2]
[398863999,1765935044145,-150.0,0.0001738,2]
[398864000,1765935044154,-150.0,0.00017404,2]
[398864001,1765935044163,-150.0,0.00017404,2]
[398864002,1765935044172,-150.0,0.00017404,2]
[398864003,1765935044181,-543.76,0.00017453,2]
[398864004,1765935044190,-150.0,0.00017467,2]
[398864005,1765935044200,-227.19805544,0.00017504,2]
[398864006,1765935044209,-150.0,0.0001751,2]
[398864007,1765935044218,-150.0,0.00017526,2]
[398864008,1765935044228,-150.0,0.00017526,2]
[398864009,1765935044237,-150.0,0.00017562,2]
[398864010,1765935044247,-595.37131296,0.00017623,2]
[398864011,1765935044256,-1361.0,0.00017623,2]
[398864012,1765935044265,-150.0,0.00017672,2]
[398864013,1765935044274,-150.0,0.00017672,2]
[398864014,1765935044284,-1500.0,0.00017682,2]
[398864015,1765935044293,-227.19805544,0.00017703,2]
[398864016,1765935044304,-10000.0,0.00017714,2]
[398864017,1765935044313,-150.0,0.00017721,2]
[398864018,1765935044326,-150.0,0.00017721,2]
[398864019,1765935044336,-150.0,0.00017721,2]
[398864020,1765935044346,-150.0,0.00017721,2]
[398864021,1765935044355,-543.76,0.00017727,2]
[398864022,1765935044365,-1500.0,0.00017782,2]
[398864023,1765935044374,-150.0,0.00017818,2]
[398864024,1765935044384,-150.0,0.00017818,2]
[398864025,1765935044394,-150.0,0.00017847,2]